[Event "Titled Tuesday Blitz June 20 Late 2023"]
[White "Liu, Kelsey"]
[Black "Ricaurte Lopez, Juan Carlos"]
[WhiteFideId "30944481"]
[BlackFideId "3600327"]
[WhiteElo "2282"]
[BlackElo "2200"]
[Result "1-0"]
[Round "6"]
[TimeControl "180+2"]
[Date "2023.06.20"]
[WhiteClock "0:00:06"]
[BlackClock "0:00:00"]
[Board "157"]

1. e4 {[%clk 0:02:58]}  e6 {[%clk 0:02:57]} 2. d4 {[%clk 0:02:58]}  d5 {[%clk 0:02:57]} 3. Nc3 {[%clk 0:02:58]}  dxe4 {[%clk 0:02:56]} 4. Nxe4 {[%clk 0:02:58]}  Bd7 {[%clk 0:02:56]} 5. Nf3 {[%clk 0:02:57]}  Bc6 {[%clk 0:02:55]} 6. Bd3 {[%clk 0:02:56]}  Nd7 {[%clk 0:02:55]} 7. O-O {[%clk 0:02:55]}  Ngf6 {[%clk 0:02:50]} 8. Re1 {[%clk 0:02:53]}  Nxe4 {[%clk 0:02:47]} 9. Bxe4 {[%clk 0:02:54]}  Bxe4 {[%clk 0:02:46]} 10. Rxe4 {[%clk 0:02:55]}  c6 {[%clk 0:02:45]} 11. Bf4 {[%clk 0:02:49]}  Be7 {[%clk 0:02:44]} 12. c3 {[%clk 0:02:40]}  O-O {[%clk 0:02:42]} 13. Qc2 {[%clk 0:02:36]}  b5 {[%clk 0:02:35]} 14. Rae1 {[%clk 0:02:36]}  a5 {[%clk 0:02:32]} 15. Bg3 {[%clk 0:02:20]}  Re8 {[%clk 0:02:26]} 16. h4 {[%clk 0:02:20]}  a4 {[%clk 0:02:23]} 17. Rg4 {[%clk 0:02:16]}  Nf6 {[%clk 0:02:14]} 18. Rg5 {[%clk 0:01:58]}  h6 {[%clk 0:02:11]} 19. Rge5 {[%clk 0:01:56]}  Bd6 {[%clk 0:02:07]} 20. R5e2 {[%clk 0:01:33]}  Bxg3 {[%clk 0:02:07]} 21. fxg3 {[%clk 0:01:34]}  Qd5 {[%clk 0:01:55]} 22. Ne5 {[%clk 0:01:24]}  c5 {[%clk 0:01:47]} 23. dxc5 {[%clk 0:01:17]}  Qxc5+ {[%clk 0:01:43]} 24. Kh2 {[%clk 0:01:17]}  a3 {[%clk 0:01:38]} 25. b3 {[%clk 0:01:15]}  Rac8 {[%clk 0:01:36]} 26. Re3 {[%clk 0:01:00]}  Red8 {[%clk 0:01:36]} 27. g4 {[%clk 0:00:59]}  Qd6 {[%clk 0:01:20]} 28. Kh1 {[%clk 0:00:50]}  Qd2 {[%clk 0:01:16]} 29. R1e2 {[%clk 0:00:20]}  Qxc2 {[%clk 0:01:13]} 30. Rxc2 {[%clk 0:00:21]}  Nd5 {[%clk 0:01:04]} 31. Rf3 {[%clk 0:00:18]}  f6 {[%clk 0:01:00]} 32. Ng6 {[%clk 0:00:15]}  Rd7 {[%clk 0:00:54]} 33. h5 {[%clk 0:00:15]}  Nb4 {[%clk 0:00:51]} 34. Re2 {[%clk 0:00:12]}  Nd5 {[%clk 0:00:41]} 35. Rxe6 {[%clk 0:00:13]}  Nxc3 {[%clk 0:00:33]} 36. Kh2 {[%clk 0:00:06]}  Nd5 {[%clk 0:00:30]} 37. Rd3 {[%clk 0:00:05]}  Nb6 {[%clk 0:00:19]} 38. Ne7+ {[%clk 0:00:05]}  Rxe7 {[%clk 0:00:18]} 39. Rxe7 {[%clk 0:00:06]}  Kf8 {[%clk 0:00:13]} 40. Rb7 {[%clk 0:00:06]}  Ra8 {[%clk 0:00:07]} 41. Rxb6 {[%clk 0:00:06]}  Ke7 {[%clk 0:00:06]} 42. Rb7+ {[%clk 0:00:05]}  Ke6 {[%clk 0:00:06]} 43. Rxg7 {[%clk 0:00:05]}  Ke5 {[%clk 0:00:06]} 44. Rg6 {[%clk 0:00:06]}  f5 {[%clk 0:00:05]} 45. Rxh6 {[%clk 0:00:05]}  fxg4 {[%clk 0:00:03]} 46. Rc3 {[%clk 0:00:05]}  Kd4 {[%clk 0:00:00]} 47. Rhc6 {[%clk 0:00:06]} 1-0


[Site "https://www.chess.com"]

[Event "Titled Tuesday Blitz June 20 Late 2023"]
[White "Cooper, Aaron"]
[Black "Calderin Gonzalez, Roberto"]
[WhiteFideId "2634945"]
[BlackFideId "5102979"]
[WhiteElo "2281"]
[BlackElo "2082"]
[Result "1/2-1/2"]
[Round "6"]
[TimeControl "180+2"]
[Date "2023.06.20"]
[WhiteClock "0:00:07"]
[BlackClock "0:00:18"]
[Board "158"]

1. e4 {[%clk 0:03:00]}  c5 {[%clk 0:03:00]} 2. Nf3 {[%clk 0:03:00]}  Nc6 {[%clk 0:03:00]} 3. d4 {[%clk 0:02:59]}  cxd4 {[%clk 0:03:01]} 4. Nxd4 {[%clk 0:03:00]}  g6 {[%clk 0:03:02]} 5. Nc3 {[%clk 0:02:59]}  Bg7 {[%clk 0:03:02]} 6. Be3 {[%clk 0:02:59]}  Nf6 {[%clk 0:03:03]} 7. Be2 {[%clk 0:02:58]}  O-O {[%clk 0:03:04]} 8. O-O {[%clk 0:02:58]}  d5 {[%clk 0:03:02]} 9. exd5 {[%clk 0:02:57]}  Nxd5 {[%clk 0:03:03]} 10. Nxd5 {[%clk 0:02:57]}  Qxd5 {[%clk 0:03:02]} 11. Bf3 {[%clk 0:02:56]}  Qd8 {[%clk 0:02:54]} 12. Nxc6 {[%clk 0:02:55]}  bxc6 {[%clk 0:02:54]} 13. Qxd8 {[%clk 0:02:38]}  Rxd8 {[%clk 0:02:55]} 14. c3 {[%clk 0:02:37]}  Bb7 {[%clk 0:02:52]} 15. Bc5 {[%clk 0:02:31]}  e6 {[%clk 0:02:46]} 16. Rfd1 {[%clk 0:02:30]}  a6 {[%clk 0:02:43]} 17. Bb6 {[%clk 0:02:27]}  Rxd1+ {[%clk 0:02:33]} 18. Rxd1 {[%clk 0:02:26]}  Rb8 {[%clk 0:02:34]} 19. a4 {[%clk 0:02:26]}  h5 {[%clk 0:02:25]} 20. a5 {[%clk 0:02:25]}  c5 {[%clk 0:02:25]} 21. Bxb7 {[%clk 0:02:09]}  Rxb7 {[%clk 0:02:25]} 22. Rd8+ {[%clk 0:02:08]}  Kh7 {[%clk 0:02:25]} 23. Rc8 {[%clk 0:02:02]}  Rd7 {[%clk 0:02:25]} 24. Kf1 {[%clk 0:02:01]}  Bh6 {[%clk 0:02:17]} 25. Rd8 {[%clk 0:01:41]}  Rxd8 {[%clk 0:02:06]} 26. Bxd8 {[%clk 0:01:42]}  Bc1 {[%clk 0:02:06]} 27. b3 {[%clk 0:01:41]}  Bd2 {[%clk 0:02:00]} 28. Bf6 {[%clk 0:01:40]}  Kg8 {[%clk 0:01:54]} 29. Ke2 {[%clk 0:01:40]}  Bf4 {[%clk 0:01:47]} 30. g3 {[%clk 0:01:40]}  Bd6 {[%clk 0:01:47]} 31. Kd3 {[%clk 0:01:40]}  Kf8 {[%clk 0:01:45]} 32. Kc4 {[%clk 0:01:38]}  Ke8 {[%clk 0:01:45]} 33. h3 {[%clk 0:01:08]}  Kd7 {[%clk 0:01:44]} 34. g4 {[%clk 0:01:02]}  hxg4 {[%clk 0:01:42]} 35. hxg4 {[%clk 0:01:03]}  Kc6 {[%clk 0:01:42]} 36. f3 {[%clk 0:01:00]}  Bf4 {[%clk 0:01:41]} 37. Be7 {[%clk 0:00:55]}  Bd6 {[%clk 0:01:32]} 38. Bf6 {[%clk 0:00:34]}  Bf8 {[%clk 0:01:28]} 39. Bd8 {[%clk 0:00:26]}  f5 {[%clk 0:01:18]} 40. Kd3 {[%clk 0:00:21]}  Bd6 {[%clk 0:01:13]} 41. c4 {[%clk 0:00:20]}  Kd7 {[%clk 0:01:08]} 42. Bb6 {[%clk 0:00:19]}  Ke8 {[%clk 0:01:05]} 43. Kc3 {[%clk 0:00:18]}  Kf7 {[%clk 0:01:04]} 44. Kd3 {[%clk 0:00:16]}  Kf6 {[%clk 0:01:04]} 45. Ke3 {[%clk 0:00:15]}  fxg4 {[%clk 0:00:59]} 46. fxg4 {[%clk 0:00:15]}  Kg5 {[%clk 0:00:59]} 47. Kf3 {[%clk 0:00:16]}  Kh4 {[%clk 0:00:59]} 48. Bd8+ {[%clk 0:00:15]}  Kh3 {[%clk 0:00:59]} 49. Bg5 {[%clk 0:00:15]}  e5 {[%clk 0:00:55]} 50. Bf6 {[%clk 0:00:14]}  e4+ {[%clk 0:00:49]} 51. Kxe4 {[%clk 0:00:14]}  Kxg4 {[%clk 0:00:50]} 52. Kd5 {[%clk 0:00:14]}  Bf8 {[%clk 0:00:50]} 53. Bd8 {[%clk 0:00:12]}  Kf4 {[%clk 0:00:48]} 54. Kc6 {[%clk 0:00:12]}  g5 {[%clk 0:00:48]} 55. Kb6 {[%clk 0:00:12]}  g4 {[%clk 0:00:44]} 56. Bc7+ {[%clk 0:00:12]}  Kf3 {[%clk 0:00:36]} 57. Kxa6 {[%clk 0:00:12]}  Bh6 {[%clk 0:00:36]} 58. Bh2 {[%clk 0:00:11]}  Bf4 {[%clk 0:00:36]} 59. Bg1 {[%clk 0:00:10]}  g3 {[%clk 0:00:37]} 60. Bxc5 {[%clk 0:00:07]}  Be3 {[%clk 0:00:30]} 61. Bd6 {[%clk 0:00:07]}  Bf4 {[%clk 0:00:30]} 62. Bc5 {[%clk 0:00:07]}  Be3 {[%clk 0:00:19]} 63. Bd6 {[%clk 0:00:07]}  Bf4 {[%clk 0:00:18]} 64. Bc5 {[%clk 0:00:07]} 1/2-1/2


[Site "https://www.chess.com"]

[Event "Titled Tuesday Blitz June 20 Late 2023"]
[White "Martinez Alcantara, Jose Eduardo"]
[Black "Yoo, Christopher Woojin"]
[WhiteFideId "3805662"]
[BlackFideId "30909694"]
[WhiteElo "2711"]
[BlackElo "2528"]
[Result "1-0"]
[Round "7"]
[TimeControl "180+2"]
[Date "2023.06.20"]
[WhiteClock "0:01:11"]
[BlackClock "0:00:00"]
[Board "1"]

1. e4 {[%clk 0:03:00]}  c5 {[%clk 0:02:57]} 2. Nf3 {[%clk 0:03:01]}  e6 {[%clk 0:02:56]} 3. c3 {[%clk 0:03:02]}  d5 {[%clk 0:02:55]} 4. e5 {[%clk 0:03:02]}  d4 {[%clk 0:02:55]} 5. g3 {[%clk 0:03:02]}  Nc6 {[%clk 0:02:52]} 6. Bg2 {[%clk 0:03:02]}  Qc7 {[%clk 0:02:52]} 7. O-O {[%clk 0:03:02]}  Nxe5 {[%clk 0:02:42]} 8. Nxe5 {[%clk 0:02:44]}  Qxe5 {[%clk 0:02:43]} 9. d3 {[%clk 0:02:45]}  Qc7 {[%clk 0:02:37]} 10. cxd4 {[%clk 0:02:43]}  cxd4 {[%clk 0:02:36]} 11. Nd2 {[%clk 0:02:34]}  Nf6 {[%clk 0:02:28]} 12. Nc4 {[%clk 0:02:34]}  Be7 {[%clk 0:02:27]} 13. Bf4 {[%clk 0:02:33]}  Qd8 {[%clk 0:02:26]} 14. Qa4+ {[%clk 0:02:18]}  Bd7 {[%clk 0:02:24]} 15. Qb3 {[%clk 0:02:18]}  b5 {[%clk 0:01:55]} 16. Nd6+ {[%clk 0:02:03]}  Bxd6 {[%clk 0:01:52]} 17. Bxd6 {[%clk 0:02:04]}  Rc8 {[%clk 0:01:38]} 18. Rac1 {[%clk 0:02:04]}  a5 {[%clk 0:01:14]} 19. Rxc8 {[%clk 0:01:41]}  Qxc8 {[%clk 0:01:11]} 20. Qa3 {[%clk 0:01:42]}  Qd8 {[%clk 0:00:37]} 21. Qc5 {[%clk 0:01:37]}  Qc8 {[%clk 0:00:18]} 22. Qxd4 {[%clk 0:01:30]}  b4 {[%clk 0:00:19]} 23. a3 {[%clk 0:01:24]}  bxa3 {[%clk 0:00:18]} 24. Bxa3 {[%clk 0:01:24]}  Qd8 {[%clk 0:00:08]} 25. Rc1 {[%clk 0:01:23]}  Bb5 {[%clk 0:00:05]} 26. Qc5 {[%clk 0:01:17]}  Bd7 {[%clk 0:00:02]} 27. Qd6 {[%clk 0:01:14]}  Bb5 {[%clk 0:00:00]} 28. Rc8 {[%clk 0:01:11]} 1-0


[Site "https://www.chess.com"]

[Event "Titled Tuesday Blitz June 20 Late 2023"]
[White "Terry, Renato"]
[Black "Firouzja, Alireza"]
[WhiteFideId "3803457"]
[BlackFideId "12573981"]
[WhiteElo "2575"]
[BlackElo "2896"]
[Result "1/2-1/2"]
[Round "7"]
[TimeControl "180+2"]
[Date "2023.06.20"]
[WhiteClock "0:00:03"]
[BlackClock "0:00:04"]
[Board "2"]

1. d4 {[%clk 0:03:00]}  d5 {[%clk 0:02:57]} 2. Nf3 {[%clk 0:02:58]}  e6 {[%clk 0:02:55]} 3. c4 {[%clk 0:02:55]}  Nf6 {[%clk 0:02:55]} 4. Nc3 {[%clk 0:02:54]}  Be7 {[%clk 0:02:55]} 5. Bf4 {[%clk 0:02:54]}  O-O {[%clk 0:02:55]} 6. e3 {[%clk 0:02:54]}  b6 {[%clk 0:02:54]} 7. Be2 {[%clk 0:02:43]}  dxc4 {[%clk 0:02:53]} 8. Bxc4 {[%clk 0:02:42]}  Bb7 {[%clk 0:02:53]} 9. O-O {[%clk 0:02:42]}  Nbd7 {[%clk 0:02:50]} 10. Rc1 {[%clk 0:02:42]}  c5 {[%clk 0:02:47]} 11. dxc5 {[%clk 0:02:38]}  Nxc5 {[%clk 0:02:48]} 12. Qe2 {[%clk 0:02:38]}  Nh5 {[%clk 0:02:30]} 13. Be5 {[%clk 0:02:33]}  a6 {[%clk 0:01:55]} 14. Rfd1 {[%clk 0:01:42]}  Qe8 {[%clk 0:01:51]} 15. a3 {[%clk 0:01:42]}  b5 {[%clk 0:01:36]} 16. Ba2 {[%clk 0:01:41]}  Rc8 {[%clk 0:01:35]} 17. b4 {[%clk 0:01:18]}  Nd7 {[%clk 0:01:34]} 18. Bd6 {[%clk 0:01:07]}  Nb6 {[%clk 0:01:29]} 19. Ne5 {[%clk 0:01:01]}  Nf6 {[%clk 0:01:29]} 20. Bxe7 {[%clk 0:00:51]}  Qxe7 {[%clk 0:01:29]} 21. Nd3 {[%clk 0:00:52]}  Nc4 {[%clk 0:01:24]} 22. a4 {[%clk 0:00:43]}  Nd6 {[%clk 0:00:38]} 23. axb5 {[%clk 0:00:41]}  Nxb5 {[%clk 0:00:38]} 24. Nxb5 {[%clk 0:00:40]}  axb5 {[%clk 0:00:39]} 25. Nc5 {[%clk 0:00:41]}  Bc6 {[%clk 0:00:39]} 26. Bb3 {[%clk 0:00:33]}  Rfd8 {[%clk 0:00:37]} 27. h3 {[%clk 0:00:31]}  Rxd1+ {[%clk 0:00:35]} 28. Rxd1 {[%clk 0:00:29]}  g6 {[%clk 0:00:35]} 29. Qd3 {[%clk 0:00:25]}  Ra8 {[%clk 0:00:28]} 30. Qd4 {[%clk 0:00:22]}  Kg7 {[%clk 0:00:25]} 31. Qe5 {[%clk 0:00:20]}  Rd8 {[%clk 0:00:16]} 32. Rxd8 {[%clk 0:00:20]}  Qxd8 {[%clk 0:00:17]} 33. Qxe6 {[%clk 0:00:18]}  Bd5 {[%clk 0:00:11]} 34. Bxd5 {[%clk 0:00:10]}  Qxd5 {[%clk 0:00:12]} 35. Qxd5 {[%clk 0:00:03]}  Nxd5 {[%clk 0:00:13]} 36. Nd3 {[%clk 0:00:04]}  f5 {[%clk 0:00:13]} 37. Kf1 {[%clk 0:00:04]}  Kf6 {[%clk 0:00:13]} 38. Ke2 {[%clk 0:00:05]}  Nc3+ {[%clk 0:00:12]} 39. Kd2 {[%clk 0:00:05]}  Ne4+ {[%clk 0:00:13]} 40. Ke1 {[%clk 0:00:04]}  Ke6 {[%clk 0:00:13]} 41. Nf4+ {[%clk 0:00:02]}  Kd6 {[%clk 0:00:12]} 42. f3 {[%clk 0:00:03]}  Nc3 {[%clk 0:00:10]} 43. Kd2 {[%clk 0:00:04]}  Na2 {[%clk 0:00:11]} 44. Nd3 {[%clk 0:00:04]}  Kd5 {[%clk 0:00:11]} 45. Kc2 {[%clk 0:00:01]}  Kc4 {[%clk 0:00:11]} 46. Ne5+ {[%clk 0:00:02]}  Kd5 {[%clk 0:00:11]} 47. Nd3 {[%clk 0:00:01]}  Kc4 {[%clk 0:00:12]} 48. Ne5+ {[%clk 0:00:02]}  Kxb4 {[%clk 0:00:05]} 49. Kb2 {[%clk 0:00:02]}  Nc3 {[%clk 0:00:06]} 50. Nd3+ {[%clk 0:00:02]}  Kc4 {[%clk 0:00:06]} 51. Ne5+ {[%clk 0:00:02]}  Kb4 {[%clk 0:00:06]} 52. Nd3+ {[%clk 0:00:03]}  Kc4 {[%clk 0:00:06]} 53. Ne5+ {[%clk 0:00:03]}  Kb4 {[%clk 0:00:04]} 1/2-1/2


[Site "https://www.chess.com"]

[Event "Titled Tuesday Blitz June 20 Late 2023"]
[White "Nakamura, Hikaru"]
[Black "Paravyan, David"]
[WhiteFideId "2016192"]
[BlackFideId "4194985"]
[WhiteElo "2874"]
[BlackElo "2563"]
[Result "0-1"]
[Round "7"]
[TimeControl "180+2"]
[Date "2023.06.20"]
[WhiteClock "0:00:03"]
[BlackClock "0:00:19"]
[Board "3"]

1. e4 {[%clk 0:03:00]}  e5 {[%clk 0:02:59]} 2. Nc3 {[%clk 0:02:58]}  Nf6 {[%clk 0:02:59]} 3. Bc4 {[%clk 0:02:57]}  Bc5 {[%clk 0:02:56]} 4. d3 {[%clk 0:02:56]}  c6 {[%clk 0:02:56]} 5. Bb3 {[%clk 0:02:56]}  O-O {[%clk 0:02:55]} 6. Qf3 {[%clk 0:02:52]}  a5 {[%clk 0:02:38]} 7. a4 {[%clk 0:02:50]}  Na6 {[%clk 0:02:20]} 8. Nge2 {[%clk 0:02:48]}  Be7 {[%clk 0:02:19]} 9. Ng3 {[%clk 0:02:44]}  Nc5 {[%clk 0:02:19]} 10. Ba2 {[%clk 0:02:42]}  d6 {[%clk 0:02:18]} 11. Nf5 {[%clk 0:02:41]}  Bxf5 {[%clk 0:02:17]} 12. Qxf5 {[%clk 0:02:42]}  g6 {[%clk 0:02:16]} 13. Qf3 {[%clk 0:02:42]}  Nh5 {[%clk 0:02:15]} 14. Bh6 {[%clk 0:02:38]}  Ng7 {[%clk 0:02:15]} 15. h4 {[%clk 0:02:36]}  Nce6 {[%clk 0:02:14]} 16. h5 {[%clk 0:02:31]}  Nd4 {[%clk 0:02:13]} 17. Qh3 {[%clk 0:02:30]}  Nxc2+ {[%clk 0:01:52]} 18. Kd1 {[%clk 0:02:29]}  Nxa1 {[%clk 0:01:52]} 19. hxg6 {[%clk 0:02:15]}  hxg6 {[%clk 0:01:52]} 20. g4 {[%clk 0:00:54]}  Bh4 {[%clk 0:01:41]} 21. g5 {[%clk 0:00:49]}  Qb6 {[%clk 0:01:15]} 22. Qxh4 {[%clk 0:00:42]}  Nh5 {[%clk 0:01:16]} 23. Kc1 {[%clk 0:00:37]}  Nb3+ {[%clk 0:01:14]} 24. Kb1 {[%clk 0:00:37]}  Nd2+ {[%clk 0:01:12]} 25. Kc1 {[%clk 0:00:33]}  Nf3 {[%clk 0:01:12]} 26. Qg4 {[%clk 0:00:32]}  Qxf2 {[%clk 0:01:12]} 27. Kb1 {[%clk 0:00:21]}  Qg3 {[%clk 0:00:55]} 28. Qd7 {[%clk 0:00:20]}  Nd4 {[%clk 0:00:51]} 29. Rd1 {[%clk 0:00:18]}  Nf4 {[%clk 0:00:48]} 30. Qxd6 {[%clk 0:00:16]}  Nfe6 {[%clk 0:00:43]} 31. Qe7 {[%clk 0:00:11]}  Rfe8 {[%clk 0:00:36]} 32. Qa3 {[%clk 0:00:02]}  Rad8 {[%clk 0:00:35]} 33. Rc1 {[%clk 0:00:02]}  Qxd3+ {[%clk 0:00:35]} 34. Ka1 {[%clk 0:00:03]}  Nc2+ {[%clk 0:00:35]} 35. Rxc2 {[%clk 0:00:04]}  Qxc2 {[%clk 0:00:36]} 36. Bb1 {[%clk 0:00:04]}  Qc1 {[%clk 0:00:34]} 37. Qb3 {[%clk 0:00:04]}  Nd4 {[%clk 0:00:33]} 38. Qc4 {[%clk 0:00:04]}  Nc2+ {[%clk 0:00:32]} 39. Ka2 {[%clk 0:00:05]}  Nb4+ {[%clk 0:00:33]} 40. Ka3 {[%clk 0:00:05]}  Rd2 {[%clk 0:00:31]} 41. Qb3 {[%clk 0:00:06]}  c5 {[%clk 0:00:30]} 42. Nd5 {[%clk 0:00:04]}  Nxd5 {[%clk 0:00:24]} 43. exd5 {[%clk 0:00:03]}  Qxb1 {[%clk 0:00:19]} 0-1


[Site "https://www.chess.com"]

[Event "Titled Tuesday Blitz June 20 Late 2023"]
[White "Iturrizaga Bonelli, Eduardo"]
[Black "Kramnik, Vladimir"]
[WhiteFideId "3901211"]
[BlackFideId "4101588"]
[WhiteElo "2647"]
[BlackElo "2703"]
[Result "1-0"]
[Round "7"]
[TimeControl "180+2"]
[Date "2023.06.20"]
[WhiteClock "0:00:53"]
[BlackClock "0:00:00"]
[Board "4"]

1. c4 {[%clk 0:02:53]}  c5 {[%clk 0:02:59]} 2. g3 {[%clk 0:02:47]}  g6 {[%clk 0:02:58]} 3. Bg2 {[%clk 0:02:46]}  Bg7 {[%clk 0:02:59]} 4. Nc3 {[%clk 0:02:47]}  Nc6 {[%clk 0:02:58]} 5. Nf3 {[%clk 0:02:47]}  d6 {[%clk 0:02:57]} 6. O-O {[%clk 0:02:44]}  Bf5 {[%clk 0:02:56]} 7. a3 {[%clk 0:02:43]}  Qd7 {[%clk 0:02:54]} 8. Re1 {[%clk 0:02:35]}  Nf6 {[%clk 0:02:47]} 9. b4 {[%clk 0:02:31]}  O-O {[%clk 0:02:36]} 10. Bb2 {[%clk 0:02:24]}  cxb4 {[%clk 0:02:31]} 11. axb4 {[%clk 0:02:18]}  Nxb4 {[%clk 0:02:31]} 12. d3 {[%clk 0:02:15]}  a5 {[%clk 0:02:25]} 13. Nd4 {[%clk 0:02:07]}  Bh3 {[%clk 0:02:23]} 14. Bh1 {[%clk 0:02:07]}  d5 {[%clk 0:02:10]} 15. Na4 {[%clk 0:01:57]}  Qd8 {[%clk 0:01:48]} 16. Qb3 {[%clk 0:01:46]}  Rc8 {[%clk 0:01:39]} 17. Rac1 {[%clk 0:01:40]}  e5 {[%clk 0:01:27]} 18. Nb5 {[%clk 0:01:30]}  Ng4 {[%clk 0:01:05]} 19. cxd5 {[%clk 0:01:24]}  Qf6 {[%clk 0:00:58]} 20. Bf3 {[%clk 0:01:22]}  Bh6 {[%clk 0:00:46]} 21. Rc4 {[%clk 0:01:19]}  Rxc4 {[%clk 0:00:27]} 22. Qxc4 {[%clk 0:01:20]}  Qf5 {[%clk 0:00:22]} 23. Nc5 {[%clk 0:01:05]}  Qh5 {[%clk 0:00:11]} 24. Nd7 {[%clk 0:00:57]}  Re8 {[%clk 0:00:02]} 25. Nf6+ {[%clk 0:00:56]}  Nxf6 {[%clk 0:00:01]} 26. Bxh5 {[%clk 0:00:57]}  gxh5 {[%clk 0:00:00]} 27. Nd6 {[%clk 0:00:53]} 1-0


[Site "https://www.chess.com"]

[Event "Titled Tuesday Blitz June 20 Late 2023"]
[White "Babazada, Khazar"]
[Black "Grischuk, Alexander"]
[WhiteFideId "13413554"]
[BlackFideId "4126025"]
[WhiteElo "2369"]
[BlackElo "2721"]
[Result "1/2-1/2"]
[Round "7"]
[TimeControl "180+2"]
[Date "2023.06.20"]
[WhiteClock "0:02:20"]
[BlackClock "0:02:29"]
[Board "6"]

1. e4 {[%clk 0:02:50]}  e6 {[%clk 0:02:59]} 2. d4 {[%clk 0:02:51]}  d5 {[%clk 0:02:59]} 3. Nc3 {[%clk 0:02:50]}  Bb4 {[%clk 0:02:56]} 4. e5 {[%clk 0:02:51]}  c5 {[%clk 0:02:56]} 5. a3 {[%clk 0:02:51]}  Bxc3+ {[%clk 0:02:56]} 6. bxc3 {[%clk 0:02:52]}  Ne7 {[%clk 0:02:56]} 7. h4 {[%clk 0:02:47]}  Qc7 {[%clk 0:02:53]} 8. Nf3 {[%clk 0:02:46]}  b6 {[%clk 0:02:51]} 9. Bb5+ {[%clk 0:02:45]}  Bd7 {[%clk 0:02:51]} 10. Bd3 {[%clk 0:02:45]}  h6 {[%clk 0:02:44]} 11. a4 {[%clk 0:02:37]}  Bc8 {[%clk 0:02:32]} 12. Bb5+ {[%clk 0:02:36]}  Bd7 {[%clk 0:02:32]} 13. Bd3 {[%clk 0:02:24]}  Bc8 {[%clk 0:02:32]} 14. Bb5+ {[%clk 0:02:20]}  Bd7 {[%clk 0:02:29]} 15. Bd3 {[%clk 0:02:20]} 1/2-1/2


[Site "https://www.chess.com"]

[Event "Titled Tuesday Blitz June 20 Late 2023"]
[White "Le, Tuan Minh"]
[Black "Maksimovic, Bojan"]
[WhiteFideId "12401153"]
[BlackFideId "14408120"]
[WhiteElo "2566"]
[BlackElo "2457"]
[Result "1/2-1/2"]
[Round "7"]
[TimeControl "180+2"]
[Date "2023.06.20"]
[WhiteClock "0:00:05"]
[BlackClock "0:00:11"]
[Board "8"]

1. d4 {[%clk 0:02:56]}  Nf6 {[%clk 0:03:00]} 2. Nf3 {[%clk 0:02:53]}  d6 {[%clk 0:02:59]} 3. Bg5 {[%clk 0:02:54]}  Nbd7 {[%clk 0:02:58]} 4. Nbd2 {[%clk 0:02:53]}  h6 {[%clk 0:02:59]} 5. Bh4 {[%clk 0:02:53]}  g5 {[%clk 0:02:59]} 6. Bg3 {[%clk 0:02:53]}  Nh5 {[%clk 0:03:00]} 7. c3 {[%clk 0:02:52]}  Bg7 {[%clk 0:03:00]} 8. e4 {[%clk 0:02:52]}  c5 {[%clk 0:02:59]} 9. Bc4 {[%clk 0:02:48]}  Nxg3 {[%clk 0:02:48]} 10. hxg3 {[%clk 0:02:48]}  Qb6 {[%clk 0:02:48]} 11. Nb3 {[%clk 0:02:40]}  cxd4 {[%clk 0:02:47]} 12. Nfxd4 {[%clk 0:02:39]}  e6 {[%clk 0:02:31]} 13. Qe2 {[%clk 0:02:10]}  a6 {[%clk 0:02:30]} 14. f4 {[%clk 0:02:03]}  Nc5 {[%clk 0:02:19]} 15. f5 {[%clk 0:01:37]}  Nxb3 {[%clk 0:02:12]} 16. Nxb3 {[%clk 0:01:23]}  Bd7 {[%clk 0:01:43]} 17. O-O-O {[%clk 0:01:17]}  Ke7 {[%clk 0:01:43]} 18. Nd4 {[%clk 0:01:03]}  Rac8 {[%clk 0:01:41]} 19. Kb1 {[%clk 0:01:03]}  Qc5 {[%clk 0:01:26]} 20. Bb3 {[%clk 0:01:03]}  a5 {[%clk 0:01:24]} 21. fxe6 {[%clk 0:00:54]}  fxe6 {[%clk 0:01:24]} 22. Qg4 {[%clk 0:00:54]}  Qe5 {[%clk 0:00:56]} 23. a4 {[%clk 0:00:54]}  Rhf8 {[%clk 0:00:51]} 24. Rhe1 {[%clk 0:00:53]}  Rf2 {[%clk 0:00:51]} 25. Ka1 {[%clk 0:00:44]}  Rxc3 {[%clk 0:00:39]} 26. Re2 {[%clk 0:00:19]}  Rxe2 {[%clk 0:00:35]} 27. Qxe2 {[%clk 0:00:19]}  Rc8 {[%clk 0:00:31]} 28. Ka2 {[%clk 0:00:19]}  b5 {[%clk 0:00:29]} 29. axb5 {[%clk 0:00:17]}  a4 {[%clk 0:00:30]} 30. Bxa4 {[%clk 0:00:17]}  Ra8 {[%clk 0:00:30]} 31. Kb3 {[%clk 0:00:16]}  Qc5 {[%clk 0:00:28]} 32. Qd3 {[%clk 0:00:13]}  Rb8 {[%clk 0:00:22]} 33. Qc4 {[%clk 0:00:10]}  Qe5 {[%clk 0:00:19]} 34. Ka2 {[%clk 0:00:06]}  Rc8 {[%clk 0:00:18]} 35. Qb4 {[%clk 0:00:04]}  Qxe4 {[%clk 0:00:17]} 36. b6 {[%clk 0:00:02]}  Qd5+ {[%clk 0:00:16]} 37. Bb3 {[%clk 0:00:02]}  Qc5 {[%clk 0:00:16]} 38. Qxc5 {[%clk 0:00:02]}  dxc5 {[%clk 0:00:17]} 39. b7 {[%clk 0:00:02]}  Rb8 {[%clk 0:00:17]} 40. Nxe6 {[%clk 0:00:02]}  Bxe6 {[%clk 0:00:17]} 41. Re1 {[%clk 0:00:03]}  Rxb7 {[%clk 0:00:11]} 42. Rxe6+ {[%clk 0:00:04]}  Kd7 {[%clk 0:00:11]} 43. Rg6 {[%clk 0:00:04]}  Bd4 {[%clk 0:00:11]} 44. Rxh6 {[%clk 0:00:04]}  c4 {[%clk 0:00:09]} 45. Rh7+ {[%clk 0:00:04]}  Kc6 {[%clk 0:00:10]} 46. Ba4+ {[%clk 0:00:04]}  Kb6 {[%clk 0:00:09]} 47. Rxb7+ {[%clk 0:00:04]}  Kxb7 {[%clk 0:00:09]} 48. Bb5 {[%clk 0:00:05]}  c3 {[%clk 0:00:09]} 49. bxc3 {[%clk 0:00:05]}  Bxc3 {[%clk 0:00:10]} 50. g4 {[%clk 0:00:06]}  Be5 {[%clk 0:00:10]} 51. Bd3 {[%clk 0:00:06]}  Kc6 {[%clk 0:00:11]} 52. Bf5 {[%clk 0:00:05]}  Kd6 {[%clk 0:00:11]} 1/2-1/2


[Site "https://www.chess.com"]